bitfinex/quotes_BTCUSD_20250408
["timestamp","ask_amount","ask_price","bid_price","bid_amount"]
[1744139967827,0.01304,76682.0,76656.0,1.03284]
[1744139968045,0.13929864,76682.0,76651.0,0.013046]
[1744139968303,0.12625864,76682.0,76636.0,0.060348]
[1744139968433,0.12625864,76682.0,76623.0,0.0258982]
[1744139968434,0.013045,76652.0,76640.0,0.00994415]
[1744139968641,0.013043,76665.0,76650.0,0.260923]
[1744139968849,0.260879,76664.0,76650.0,0.13930464]
[1744139969182,0.013043,76666.0,76651.0,0.17896]
[1744139969393,0.260879,76664.0,76651.0,0.17896]
[1744139969548,0.001,76652.0,76650.0,0.12625864]
[1744139969769,0.001,76652.0,76651.0,0.192006]
[1744139969975,0.00012567,76652.0,76651.0,0.17896]
[1744139970544,0.00012567,76652.0,76650.0,0.004]
[1744139971468,0.26104567,76652.0,76650.0,0.004]
[1744139971911,0.00012567,76652.0,76647.0,0.179]
[1744139972114,0.00012567,76652.0,76644.0,0.260946]
[1744139972312,0.00112567,76652.0,76647.0,0.179]
[1744139972628,0.00112567,76652.0,76648.0,0.12625864]
[1744139972829,0.00012567,76652.0,76649.0,0.260928]
[1744139973233,0.00012567,76652.0,76651.0,0.260922]
[1744139973437,0.00012567,76652.0,76651.0,0.40022664]
[1744139973637,0.00012567,76652.0,76651.0,0.57926664]
[1744139974281,0.00012567,76652.0,76651.0,0.40022664]
[1744139974483,0.00012567,76652.0,76642.0,1.03352]
[1744139974720,0.00012567,76652.0,76650.0,0.260925]
[1744139974939,0.00012567,76652.0,76651.0,0.66095372]
[1744139975144,0.00012567,76652.0,76651.0,0.12625864]
[1744139975280,0.00012567,76652.0,76651.0,0.14191359]
[1744139975489,0.00112567,76652.0,76651.0,0.12886759]
[1744139975688,0.00112567,76652.0,76641.0,0.260956]
[1744139975886,0.00112567,76652.0,76645.0,0.013047]
[1744139976097,0.00112567,76652.0,76649.0,0.260925]
[1744139976297,0.00212567,76652.0,76651.0,0.001]
[1744139976541,0.00012567,76652.0,76650.0,0.12625864]
[1744139976758,0.013046,76651.0,76637.0,0.013048]
[1744139976910,0.00212567,76652.0,76641.0,0.30629864]
[1744139977110,0.00112567,76652.0,76643.0,0.260947]
[1744139977316,0.00112567,76652.0,76644.0,0.260946]
[1744139977512,0.00212567,76652.0,76651.0,0.261922]
[1744139977712,0.00012567,76652.0,76651.0,0.273968]
[1744139978122,0.00012567,76652.0,76651.0,0.260922]
[1744139978319,0.00012567,76652.0,76643.0,0.260948]
[1744139978535,0.00012567,76652.0,76644.0,0.13930564]
[1744139978734,0.00012567,76652.0,76647.0,0.260936]
[1744139978921,0.00012567,76652.0,76650.0,0.273971]
[1744139979124,0.00212567,76652.0,76651.0,0.40283556]
[1744139979320,0.00112567,76652.0,76651.0,0.40022664]
[1744139979786,0.00112567,76652.0,76651.0,0.12625864]
[1744139980615,0.00112567,76652.0,76642.0,0.260951]
[1744139980616,0.00112567,76652.0,76643.0,0.17904]
[1744139980824,0.00212567,76652.0,76644.0,0.38720464]
[1744139981042,0.00312567,76652.0,76651.0,0.001]
[1744139981446,0.00312567,76652.0,76651.0,0.261922]
[1744139981621,0.00312567,76652.0,76651.0,0.40122664]
[1744139982280,0.00112567,76652.0,76651.0,0.40022664]
[1744139982496,0.00112567,76652.0,76651.0,0.57926664]
[1744139982718,0.00112567,76652.0,76651.0,0.91926664]
[1744139982933,0.00012567,76652.0,76651.0,0.91926664]
[1744139983147,0.00112567,76652.0,76651.0,0.92026664]
[1744139983388,0.00112567,76652.0,76651.0,0.93480749]
[1744139983673,4.291692,76735.0,76680.0,0.013041]
[1744139983674,0.013037,76699.0,76680.0,0.013041]
[1744139983894,0.0493,76712.0,76684.0,0.01304]
[1744139983895,0.013036,76705.0,76684.0,0.01304]
[1744139984067,0.000126,76700.0,76688.0,0.013039]
[1744139984265,0.000126,76700.0,76689.0,0.12625864]
[1744139984815,0.260882,76700.0,76689.0,0.12625864]
[1744139985054,0.000126,76700.0,76694.0,0.013038]
[1744139985368,0.273799,76699.0,76695.0,0.12625864]
[1744139985682,0.013038,76698.0,76684.0,0.01304]
[1744139985875,0.260885,76700.0,76687.0,0.2608]
[1744139986076,0.260764,76698.0,76688.0,0.12625864]
[1744139986308,0.260767,76697.0,76688.0,0.12625864]
[1744139986687,0.273816,76694.0,76688.0,0.12625864]
[1744139986890,0.260782,76693.0,76686.0,0.00957415]
[1744139987098,0.013038,76698.0,76687.0,0.12625864]
[1744139987276,0.260763,76698.0,76687.0,0.12625864]
[1744139987652,0.273805,76697.0,76687.0,0.12825864]
[1744139987851,0.000126,76700.0,76693.0,0.013038]
[1744139988072,0.000126,76700.0,76693.0,0.13929664]
[1744139988405,0.000126,76700.0,76687.0,0.002]
[1744139988406,0.013038,76696.0,76687.0,0.002]
[1744139988550,0.013038,76694.0,76687.0,0.002]
[1744139988760,0.273812,76695.0,76687.0,0.002]
[1744139988961,0.013038,76697.0,76686.0,0.00988056]
[1744139989162,0.260796,76688.0,76687.0,0.003]
[1744139989363,0.273835,76688.0,76687.0,0.003]
[1744139989565,0.01304,76682.0,76668.0,0.013043]
[1744139989772,0.013041,76679.0,76669.0,0.12625864]
[1744139989971,0.013043,76669.0,76662.0,0.0258982]
[1744139990172,0.013041,76679.0,76663.0,0.12625864]
[1744139990378,0.013041,76680.0,76666.0,0.260868]
[1744139990581,0.53422135,76710.0,76674.0,0.013042]
[1744139990799,0.260791,76690.0,76677.0,0.260833]
[1744139991001,0.273825,76692.0,76679.0,0.260827]
[1744139991230,0.013038,76698.0,76681.0,0.26082]
[1744139991231,0.273816,76694.0,76681.0,0.26082]
[1744139991423,0.013038,76695.0,76682.0,0.12625864]
[1744139991626,0.02118226,76694.0,76690.0,0.26079]
[1744139991827,0.013036,76707.0,76690.0,0.26079]
[1744139991828,0.26074,76705.0,76692.0,0.260783]
[1744139992010,0.26076,76699.0,76693.0,0.12625864]
[1744139992210,0.02048594,76699.0,76692.0,0.12625864]
[1744139992467,0.02048594,76699.0,76694.0,0.260774]
[1744139992644,0.260743,76704.0,76693.0,0.12625864]
[1744139992847,0.013162,76707.0,76693.0,0.12625864]
[1744139992848,0.013162,76707.0,76695.0,0.12625864]
[1744139993062,0.013036,76705.0,76695.0,0.12625864]
[1744139993259,0.013162,76707.0,76698.0,0.013038]
[1744139993260,0.000126,76707.0,76698.0,0.013038]
[1744139993463,0.02134799,76707.0,76700.0,0.013037]
[1744139993728,0.02134799,76707.0,76706.0,0.273771]
[1744139993933,0.000126,76707.0,76706.0,0.40002964]
[1744139994148,0.001126,76707.0,76706.0,0.40002964]
[1744139994611,0.0479,76750.0,76735.0,0.013031]
[1744139994858,0.013028,76752.0,76736.0,0.13928964]
[1744139995094,0.00012593,76747.0,76736.0,0.12625864]
[1744139995315,0.00012593,76747.0,76737.0,0.013031]
[1744139995473,0.2606,76746.0,76738.0,0.12625864]
[1744139995675,0.0207107,76747.0,76730.0,0.17888]
[1744139995880,0.0337397,76747.0,76731.0,0.12625864]
[1744139996076,0.01303,76744.0,76731.0,0.12625864]
[1744139996308,0.013029,76746.0,76731.0,0.13594366]
[1744139996511,0.0217107,76747.0,76738.0,0.013031]
[1744139996835,0.26064,76735.0,76731.0,0.00968502]
[1744139997011,0.01303,76744.0,76732.0,0.12625864]
[1744139997228,0.260627,76738.0,76732.0,0.12625864]
[1744139997424,0.273661,76737.0,76732.0,0.12625864]
[1744139997722,0.260621,76740.0,76732.0,0.12625864]
[1744139998064,0.013029,76746.0,76732.0,0.13929064]
[1744139998277,0.013029,76746.0,76734.0,0.260639]
[1744139998512,0.013029,76746.0,76732.0,0.13929064]
[1744139998513,0.01303,76745.0,76735.0,0.12625864]
[1744139998732,0.01303,76742.0,76735.0,0.12625864]
[1744139998900,0.26061,76743.0,76735.0,0.12625864]
[1744139999078,0.013031,76736.0,76731.0,0.01285337]
[1744139999292,0.260621,76740.0,76732.0,0.12625864]
[1744139999490,0.260624,76739.0,76732.0,0.12625864]
[1744139999693,0.260627,76738.0,76735.0,0.001]
[1744139999932,0.260608,76744.0,76735.0,0.001]
[1744139999933,0.02148007,76747.0,76735.0,0.013031]
[1744140000173,0.02148007,76747.0,76738.0,0.013031]
[1744140000378,0.013031,76738.0,76731.0,0.003]
[1744140000670,0.013028,76756.0,76738.0,0.013031]
[1744140000878,0.033025,76774.0,76762.0,0.260544]
[1744140001080,0.033025,76774.0,76757.0,0.26056]
[1744140001081,0.0004196,76765.0,76757.0,0.26056]
[1744140001289,0.0004196,76765.0,76763.0,0.12625864]
[1744140001493,0.02008714,76765.0,76763.0,0.12625864]
[1744140001695,0.013028,76754.0,76745.0,0.0258982]
[1744140001896,0.013029,76746.0,76725.0,0.0499]
[1744140002099,0.013028,76755.0,76741.0,0.260614]
[1744140002308,0.013032,76733.0,76724.0,0.0358103]
[1744140002507,0.260691,76719.0,76706.0,0.0484]
[1744140002715,0.01303,76743.0,76729.0,0.013032]
[1744140002916,0.260609,76744.0,76731.0,0.013032]
[1744140003054,0.260627,76738.0,76732.0,0.12625864]
[1744140003260,0.001,76746.0,76736.0,0.273662]
[1744140003454,0.353028,76752.0,76740.0,0.260618]
[1744140003653,0.353028,76752.0,76741.0,0.01303]
[1744140003903,0.013029,76746.0,76737.0,0.12625864]
[1744140004249,0.013029,76750.0,76731.0,0.00012593]
[1744140004250,0.013032,76732.0,76731.0,0.00012593]
[1744140004741,0.353032,76732.0,76731.0,0.00012593]
[1744140005680,0.260694,76719.0,76706.0,0.013036]
[1744140005874,0.013034,76720.0,76707.0,0.12625864]
[1744140006105,0.013035,76713.0,76694.0,0.013038]
[1744140006316,0.260725,76710.0,76699.0,0.260759]
[1744140006526,0.26072,76711.0,76700.0,0.260754]
[1744140006698,0.260716,76712.0,76700.0,0.273792]
[1744140006900,0.354034,76719.0,76707.0,0.260732]
[1744140007101,0.013035,76711.0,76701.0,0.12625864]
[1744140007300,0.013035,76711.0,76696.0,0.013038]
[1744140007301,0.013036,76709.0,76696.0,0.260767]
[1744140007532,0.01907297,76711.0,76700.0,0.013037]
[1744140007782,0.01907297,76711.0,76699.0,0.013037]
[1744140007783,0.02364077,76718.0,76710.0,0.013036]
[1744140007983,0.013029,76750.0,76727.0,0.013033]
[1744140008188,0.00012579,76732.0,76728.0,0.12625864]
[1744140008314,0.00012579,76732.0,76731.0,0.013032]
[1744140008500,0.00012579,76732.0,76730.0,0.260654]
[1744140008700,0.00012579,76732.0,76730.0,0.12625864]
[1744140008909,0.01987598,76732.0,76722.0,0.260679]
[1744140009109,0.26065,76731.0,76722.0,0.12625864]
[1744140009316,0.273694,76728.0,76727.0,0.002]
[1744140009515,1.00419054,76728.0,76727.0,0.002]
[1744140009769,0.013037,76700.0,76687.0,0.273839]
[1744140009914,0.273773,76706.0,76689.0,0.013039]
[1744140010112,0.273751,76712.0,76693.0,0.013038]
[1744140010448,0.02367771,76711.0,76703.0,0.260743]
[1744140010975,0.02367771,76713.0,76711.0,0.260717]
[1744140011210,0.02367771,76722.0,76713.0,0.013035]
[1744140011440,0.013034,76720.0,76702.0,0.0258982]
[1744140011641,0.013035,76715.0,76703.0,0.12625864]
[1744140011813,0.013039,76690.0,76674.0,0.013042]
[1744140012046,0.013038,76696.0,76687.0,0.009]
[1744140012216,0.03552189,76689.0,76687.0,0.009]
[1744140012376,0.03552189,76689.0,76681.0,0.013041]
[1744140012573,0.03552189,76689.0,76688.0,0.273835]
[1744140012801,0.013037,76699.0,76687.0,0.260799]
[1744140012979,0.001,76690.0,76687.0,0.260799]
[1744140013173,0.001,76690.0,76688.0,0.260796]
[1744140013720,0.001,76690.0,76687.0,0.273839]
[1744140013946,0.001,76690.0,76685.0,0.260806]
[1744140014141,0.0118671,76696.0,76689.0,0.013039]
[1744140014368,0.0118671,76696.0,76695.0,0.013038]
[1744140014660,0.0118671,76696.0,76695.0,0.13929664]
[1744140014862,0.0118671,76696.0,76695.0,0.14908419]
[1744140015041,0.01934215,76707.0,76706.0,0.273771]
[1744140015272,0.0493,76741.0,76727.0,0.013033]
[1744140015473,3.256094,76780.0,76736.0,0.013031]
[1744140015474,0.01969604,76742.0,76736.0,0.013031]
[1744140015676,0.0493,76775.0,76758.0,0.260557]
[1744140015874,0.260488,76779.0,76759.0,0.14189111]
[1744140016080,0.260479,76782.0,76759.0,0.14189111]
[1744140016081,0.03888605,76774.0,76759.0,0.13928564]
[1744140016283,0.1168716,76760.0,76759.0,0.14189094]
[1744140016487,0.1168716,76760.0,76759.0,0.33266649]
[1744140016637,0.00041967,76760.0,76759.0,0.33266649]
[1744140017086,0.00041967,76760.0,76759.0,0.34261258]
[1744140017323,0.02,76774.0,76773.0,0.273533]
[1744140017434,0.02,76774.0,76773.0,0.39979164]
[1744140017633,0.02012583,76774.0,76773.0,0.39979164]
[1744140018966,0.11645193,76787.0,76786.0,0.013023]
[1744140019103,0.11645193,76787.0,76786.0,0.16517984]
[1744140019497,0.260403,76804.0,76792.0,0.013022]
[1744140019735,0.01302,76804.0,76793.0,0.12625864]
[1744140019965,0.0005258,76799.0,76795.0,0.013021]
[1744140020195,0.0005258,76799.0,76798.0,0.013021]
[1744140020416,0.0005258,76799.0,76798.0,0.14188354]
[1744140020628,0.0005258,76799.0,76798.0,0.12625864]
[1744140020869,0.0005258,76799.0,76798.0,0.14188365]
[1744140021538,0.0005258,76799.0,76798.0,0.13927964]
[1744140021995,0.0005258,76799.0,76798.0,0.14127964]
[1744140022197,0.0005258,76799.0,76798.0,0.14327964]
[1744140022927,0.0005258,76799.0,76798.0,0.16042415]
[1744140023076,0.0005258,76799.0,76798.0,0.15782049]
[1744140023278,0.0005258,76799.0,76798.0,0.33654049]
[1744140024191,0.0005258,76799.0,76798.0,0.13025864]
[1744140024694,0.30136218,76799.0,76798.0,0.004]
[1744140024888,0.2739668,76799.0,76798.0,0.004]
[1744140025329,0.2739668,76799.0,76798.0,0.002]
[1744140025499,0.2739668,76799.0,76781.0,0.00980295]
[1744140025500,0.260469,76785.0,76781.0,0.00980295]
[1744140025701,0.34,76790.0,76782.0,0.12625864]
[1744140025904,0.01302,76800.0,76782.0,0.12625864]
[1744140026179,0.013017,76821.0,76798.0,0.013021]
[1744140026327,0.27994288,76826.0,76798.0,0.36212225]
[1744140026528,0.0035258,76799.0,76798.0,0.35951869]
[1744140026926,0.260318,76829.0,76813.0,0.273387]
[1744140027093,0.013016,76823.0,76814.0,0.12625864]
[1744140027550,0.013017,76820.0,76814.0,0.12625864]
[1744140027748,0.260349,76820.0,76814.0,0.12625864]
[1744140027949,0.273366,76820.0,76814.0,0.12625864]
[1744140028156,0.260351,76820.0,76814.0,0.13025864]
[1744140028462,0.260352,76819.0,76814.0,0.13025864]
[1744140028623,0.260352,76819.0,76814.0,0.13225864]
[1744140028820,0.013017,76820.0,76814.0,0.12625864]
[1744140029024,0.014017,76820.0,76814.0,0.1402727]
[1744140029223,0.001,76820.0,76814.0,0.1402727]
[1744140029653,0.001,76820.0,76814.0,0.14034017]
[1744140030032,0.261351,76820.0,76814.0,0.14634017]
[1744140030228,0.013018,76815.0,76814.0,0.14234017]
[1744140030491,0.274379,76819.0,76814.0,0.14834017]
[1744140030675,0.014017,76819.0,76814.0,0.14834017]
[1744140030871,0.001,76819.0,76814.0,0.14834017]
[1744140031074,0.273363,76821.0,76814.0,0.14234017]
[1744140031338,0.013017,76822.0,76814.0,0.14234017]
[1744140031491,0.001,76815.0,76814.0,0.14834017]
[1744140031690,0.001,76815.0,76814.0,0.14234017]
[1744140031899,0.00561782,76815.0,76814.0,0.14234017]
[1744140032202,0.00012578,76827.0,76818.0,0.013017]
[1744140032409,0.34,76825.0,76819.0,0.12625864]
[1744140032655,0.00582162,76824.0,76821.0,0.260344]
[1744140032796,0.00582162,76824.0,76822.0,0.12625864]
[1744140033197,0.00582162,76824.0,76820.0,6.747e-05]
[1744140033198,0.013012,76850.0,76834.0,0.013015]
[1744140033404,0.00041918,76844.0,76843.0,0.273282]
[1744140033604,0.00041918,76844.0,76843.0,0.12625864]
[1744140033802,0.00041918,76844.0,76843.0,0.15641486]
[1744140034007,0.00035171,76844.0,76843.0,0.15641486]
[1744140034207,0.00035171,76844.0,76843.0,0.32199191]
[1744140034402,0.00035171,76844.0,76843.0,0.50171191]
[1744140034661,0.00435171,76844.0,76843.0,0.48869891]
[1744140034879,0.00435171,76844.0,76843.0,0.50171191]
[1744140035270,0.00035171,76844.0,76843.0,0.50171191]
[1744140035470,0.00135171,76844.0,76843.0,0.18564544]
[1744140035673,0.00135171,76844.0,76843.0,0.13925864]
[1744140036022,0.00135171,76844.0,76843.0,0.16222978]
[1744140036244,0.00135171,76844.0,76843.0,0.17037263]
[1744140036517,7.1e-07,76844.0,76843.0,0.17037263]
[1744140036721,8e-05,76856.0,76848.0,0.013012]
[1744140036921,8e-05,76856.0,76848.0,0.61964369]
[1744140037176,2e-07,76849.0,76848.0,0.61964369]
[1744140037352,8e-05,76856.0,76855.0,0.273241]
[1744140037552,0.00020568,76856.0,76855.0,0.41404049]
[1744140037854,0.00020568,76856.0,76855.0,0.56404049]
[1744140038263,6.8e-07,76859.0,76858.0,0.273231]
[1744140038460,0.0004,76889.0,76888.0,0.013005]
[1744140038705,0.00052568,76889.0,76888.0,0.12885948]
[1744140038934,0.00052568,76889.0,76888.0,0.20190533]
[1744140039141,0.00052568,76889.0,76888.0,0.19930449]
[1744140039354,0.00052568,76889.0,76888.0,0.6619091]
[1744140039355,6.8e-07,76889.0,76888.0,0.6619091]
[1744140039659,0.0003358,76895.0,76894.0,0.77764285]
[1744140039957,0.0003358,76895.0,76894.0,2.14067969]
[1744140040159,0.0003358,76895.0,76894.0,0.15215684]
[1744140040467,0.2734338,76895.0,76894.0,0.12625864]
[1744140040764,0.2734338,76895.0,76888.0,0.01981199]
[1744140040765,0.27312,76889.0,76888.0,0.01081199]
[1744140040923,0.27312,76889.0,76888.0,0.13607063]
[1744140041300,0.27247,76889.0,76888.0,0.00981199]
[1744140041477,0.260155,76877.0,76865.0,0.0258982]
[1744140041696,0.273196,76868.0,76867.0,0.009853]
[1744140041895,0.613196,76868.0,76867.0,0.009853]
[1744140042313,0.260149,76880.0,76868.0,0.013009]
[1744140042454,0.260172,76872.0,76868.0,0.12625864]
[1744140043017,0.273195,76868.0,76865.0,0.00012568]
[1744140043173,0.34,76869.0,76867.0,0.004]
[1744140043379,0.013007,76878.0,76868.0,0.12625864]
[1744140043695,0.013007,76877.0,76868.0,0.14126764]
[1744140043898,0.013007,76877.0,76869.0,0.013009]
[1744140044127,0.34,76884.0,76879.0,0.013007]
[1744140044327,0.34,76888.0,76880.0,0.12625864]
[1744140044525,0.013005,76893.0,76884.0,0.013006]
[1744140044728,0.260119,76888.0,76885.0,0.12621245]
[1744140044914,0.260101,76894.0,76886.0,0.260125]
[1744140045118,0.273191,76869.0,76868.0,0.002]
[1744140045355,0.013009,76866.0,76855.0,0.013011]
[1744140045548,0.353009,76869.0,76865.0,0.12638432]
[1744140045693,0.34,76867.0,76866.0,0.12625864]
[1744140045894,0.013006,76884.0,76873.0,0.013008]
[1744140046155,0.013006,76884.0,76865.0,0.00012568]
[1744140046156,0.273142,76883.0,76874.0,0.12625864]
[1744140046387,0.260162,76876.0,76874.0,0.12625864]
[1744140046510,0.273202,76866.0,76865.0,0.00012568]
[1744140046716,0.28774285,76866.0,76865.0,0.00012568]
[1744140047371,0.013008,76875.0,76865.0,0.12638432]
[1744140047577,0.260177,76871.0,76866.0,0.12886024]
[1744140047725,0.013008,76871.0,76866.0,0.12625864]
[1744140047929,0.013008,76871.0,76865.0,0.00212568]
[1744140047930,0.28774285,76866.0,76865.0,0.00212568]
[1744140048153,0.28774285,76866.0,76865.0,0.00012568]
[1744140048553,0.28774285,76866.0,76865.0,0.00112568]
[1744140048955,0.28774285,76866.0,76865.0,0.00312568]
[1744140049216,0.28774285,76866.0,76865.0,6.8e-07]
[1744140049217,0.62774285,76866.0,76865.0,6.8e-07]
[1744140049416,0.013013,76844.0,76836.0,0.260293]
[1744140049564,0.013013,76844.0,76842.0,0.12625864]
[1744140050147,0.273281,76844.0,76842.0,0.12625864]
[1744140050321,0.013013,76843.0,76842.0,0.12625864]
[1744140051913,0.273287,76842.0,76841.0,0.00052568]
[1744140052086,0.28782785,76842.0,76841.0,0.00052568]
[1744140052298,0.80783527,76842.0,76841.0,6.8e-07]
[1744140052500,0.80783527,76842.0,76797.0,0.0258982]
[1744140052501,0.01454085,76821.0,76810.0,0.013019]
[1744140052668,0.0011227,76820.0,76812.0,0.12886221]
[1744140052866,0.260362,76817.0,76812.0,0.12625864]
[1744140053084,0.00079946,76816.0,76812.0,0.12625864]
[1744140053485,8.516e-05,76816.0,76812.0,0.12625864]
[1744140053685,0.013015,76831.0,76821.0,0.013017]
[1744140053866,0.013014,76838.0,76826.0,0.013016]
[1744140054064,0.34,76833.0,76827.0,0.39959964]
[1744140054275,0.34,76835.0,76827.0,0.13927464]
[1744140054472,0.34,76833.0,76827.0,0.12625864]
[1744140054678,0.34,76833.0,76827.0,0.14187768]
[1744140054902,0.001,76842.0,76839.0,0.013014]
[1744140055136,0.001,76842.0,76840.0,0.12625864]
[1744140055345,0.01454085,76849.0,76844.0,0.260265]
[1744140055541,0.01454085,76849.0,76843.0,0.013013]
[1744140055742,0.27478885,76850.0,76843.0,0.38652764]
[1744140055971,0.01974388,76866.0,76861.0,0.01301]
[1744140056170,0.260217,76859.0,76852.0,0.013012]
[1744140056368,0.01301,76860.0,76853.0,0.12625864]
[1744140056568,0.260213,76860.0,76853.0,0.39950464]
[1744140056817,0.260213,76860.0,76854.0,0.260231]
[1744140057002,0.01301,76863.0,76855.0,0.12625864]
[1744140057207,0.01301,76863.0,76855.0,0.38648764]
[1744140057208,0.260208,76862.0,76855.0,0.38648764]
[1744140057352,0.00212554,76866.0,76865.0,0.013009]
[1744140057552,0.00012554,76866.0,76865.0,0.13926764]
[1744140057767,0.00012554,76866.0,76865.0,0.12625864]
[1744140057966,0.00012554,76866.0,76854.0,0.003]
[1744140058220,0.260203,76863.0,76856.0,0.12625864]
[1744140058422,0.01313454,76866.0,76856.0,0.13926964]
[1744140058571,0.00012554,76866.0,76861.0,0.260208]
[1744140058766,0.00012554,76866.0,76862.0,0.13926864]
[1744140059036,0.00012554,76866.0,76865.0,0.273205]
[1744140059179,0.00012554,76866.0,76865.0,0.39946364]
[1744140059592,0.00112554,76866.0,76865.0,0.39946364]
[1744140060135,0.00112554,76866.0,76865.0,0.12625864]
[1744140060340,0.27432754,76866.0,76865.0,0.12625864]
[1744140060569,0.62775385,76863.0,76862.0,0.001]
[1744140060770,0.613213,76863.0,76862.0,0.001]
[1744140061301,0.613213,76863.0,76850.0,0.260246]
[1744140061302,0.273236,76857.0,76850.0,0.260246]
[1744140061520,0.01301,76859.0,76854.0,0.00977396]
[1744140061705,0.260227,76856.0,76855.0,0.12625864]
[1744140061918,0.01301,76860.0,76855.0,0.12625864]
[1744140062125,0.260223,76857.0,76855.0,0.12625864]
[1744140062639,0.260207,76862.0,76855.0,0.39949964]
[1744140062918,0.260196,76865.0,76856.0,0.00260206]
[1744140063139,0.00012554,76866.0,76861.0,0.01301]
[1744140063345,0.00012554,76866.0,76865.0,0.273205]
[1744140063641,0.27332754,76866.0,76865.0,0.12625864]
[1744140063969,0.273226,76859.0,76858.0,0.0258982]
[1744140064176,0.273226,76859.0,76855.0,0.007]
[1744140064177,0.273237,76856.0,76855.0,0.007]
[1744140064377,0.62777785,76856.0,76855.0,0.007]
[1744140065072,0.613237,76856.0,76855.0,0.014]
[1744140065284,0.01301,76859.0,76855.0,0.13325864]
[1744140065461,0.01301,76860.0,76856.0,0.12625864]
[1744140065661,0.273234,76857.0,76856.0,0.12625864]
[1744140065885,0.273237,76856.0,76855.0,0.007]
[1744140066092,0.013009,76868.0,76858.0,0.013011]
[1744140066217,0.013009,76864.0,76858.0,0.12625864]
[1744140066607,0.273223,76860.0,76859.0,0.12625864]
[1744140066822,0.013009,76864.0,76859.0,0.12625864]
[1744140066987,0.00012554,76866.0,76865.0,0.013009]
[1744140067191,0.00012554,76866.0,76865.0,0.12625864]
[1744140067192,0.01313454,76866.0,76865.0,0.12625864]
[1744140067424,0.27332754,76866.0,76865.0,0.12625864]
[1744140067607,0.273219,76862.0,76858.0,0.001]
[1744140067824,0.62776685,76859.0,76858.0,0.001]
[1744140067950,0.260244,76851.0,76846.0,0.260259]
[1744140068192,0.013011,76857.0,76848.0,0.260253]
[1744140068389,0.260232,76855.0,76849.0,0.38650564]
[1744140068625,0.01301,76861.0,76852.0,0.260237]
[1744140068835,0.255224,76857.0,76853.0,0.12886073]
[1744140069056,0.013011,76856.0,76853.0,0.12625864]
[1744140069283,0.260181,76870.0,76853.0,0.12625864]
[1744140069284,0.013008,76875.0,76862.0,0.01301]
[1744140069487,0.013007,76877.0,76868.0,0.013009]
[1744140069696,0.013008,76873.0,76869.0,0.12625864]
[1744140069900,0.260173,76872.0,76869.0,0.12625864]
[1744140070096,0.260179,76870.0,76869.0,0.12625864]
[1744140070300,0.01301,76861.0,76853.0,0.003]
[1744140070495,0.273212,76864.0,76857.0,0.00012554]
[1744140070695,0.013009,76865.0,76859.0,0.260216]
[1744140070898,0.273219,76861.0,76860.0,0.12625864]
[1744140071145,0.353011,76858.0,76857.0,0.00012554]
[1744140071475,0.613231,76858.0,76857.0,0.12638418]
[1744140071763,0.28519384,76858.0,76857.0,0.00012554]
[1744140071965,0.01196284,76858.0,76857.0,0.12638418]
[1744140072165,0.01196284,76858.0,76857.0,0.39961818]
[1744140072377,0.01196284,76858.0,76857.0,0.12638418]
[1744140072545,0.01296284,76858.0,76857.0,0.39961818]
[1744140073372,0.01196284,76858.0,76857.0,0.39961818]
[1744140073581,0.01196284,76858.0,76857.0,0.40361818]
[1744140073775,0.01196284,76858.0,76857.0,0.40761818]
[1744140074129,0.273231,76858.0,76857.0,0.13438418]
[1744140074385,0.68371855,76858.0,76857.0,1.8e-07]
[1744140074576,0.81050348,76858.0,76857.0,1.8e-07]
[1744140074759,0.62887582,76858.0,76857.0,1.8e-07]
[1744140074912,0.6281276,76858.0,76857.0,1.8e-07]
[1744140075099,0.62960369,76858.0,76857.0,1.8e-07]
[1744140075323,0.75503049,76858.0,76857.0,1.8e-07]
[1744140075543,0.75403049,76858.0,76857.0,1.8e-07]
[1744140075740,0.75503049,76858.0,76857.0,1.8e-07]
[1744140075952,0.013017,76817.0,76816.0,0.00953458]
[1744140076187,0.353015,76831.0,76821.0,0.260344]
[1744140076544,0.013016,76825.0,76816.0,0.12625864]
[1744140076752,0.02389352,76830.0,76819.0,0.013017]
[1744140076944,0.02389352,76830.0,76825.0,0.013016]
[1744140077080,0.260319,76829.0,76825.0,0.12625864]
[1744140077279,0.260319,76829.0,76825.0,0.12667782]
[1744140077480,0.02389352,76828.0,76827.0,0.260325]
[1744140077770,0.02389352,76828.0,76827.0,0.39959964]
[1744140077954,0.001,76831.0,76827.0,0.12625864]
[1744140078188,0.001,76831.0,76830.0,0.273329]
[1744140078336,0.001,76831.0,76830.0,0.39958764]
[1744140078337,0.002,76831.0,76830.0,0.39958764]
[1744140078761,0.001,76831.0,76830.0,0.39958764]
[1744140079137,0.013012,76851.0,76839.0,0.260284]
[1744140079138,0.013013,76844.0,76839.0,0.260284]
[1744140079407,0.27329,76841.0,76840.0,0.12625864]
[1744140079581,0.260305,76833.0,76830.0,0.003]
[1744140079829,0.013011,76854.0,76844.0,0.013013]
[1744140080055,0.600241,76852.0,76845.0,0.12625864]
[1744140080290,0.273273,76846.0,76845.0,0.12625864]
[1744140080674,0.013014,76840.0,76834.0,0.013015]
[1744140080872,0.02386919,76846.0,76845.0,0.260264]
[1744140081080,0.02386919,76846.0,76845.0,0.65059384]
[1744140081239,0.02386919,76846.0,76845.0,0.99059384]
[1744140081434,0.01047137,76846.0,76845.0,1.10338646]
[1744140081733,0.0004,76889.0,76887.0,0.260121]
[1744140081995,0.0004,76889.0,76888.0,0.12885946]
[1744140082224,0.0004,76889.0,76888.0,0.14186446]
[1744140082442,0.0004,76889.0,76888.0,0.13926364]
[1744140082886,0.0004,76889.0,76888.0,0.13599589]
[1744140083112,0.00052568,76889.0,76888.0,0.14900089]
[1744140083332,0.00052568,76889.0,76888.0,0.15160175]
[1744140083558,0.00252568,76889.0,76888.0,0.15160153]
[1744140083805,0.00252568,76889.0,76888.0,0.14900089]
[1744140084452,0.00452568,76889.0,76888.0,0.14900089]
[1744140084670,0.00252568,76889.0,76888.0,0.15160152]
[1744140084844,0.00052568,76889.0,76888.0,0.49160124]
[1744140085067,0.00152568,76889.0,76888.0,0.48900089]
[1744140085604,0.00052568,76889.0,76888.0,0.48900089]
[1744140085842,0.00052568,76889.0,76888.0,0.15000089]